bitfinex-derivatives/quotes_ETHF0:USTF0_20260203
["timestamp","ask_amount","ask_price","bid_price","bid_amount"]
[1770111045788,0.00480935,2277.2,2276.4,2.51253932]
[1770111045985,3.077,2278.1,2276.4,3.07823346]
[1770111046289,0.12103512,2278.7,2276.6,2.72993465]
[1770111046685,4.95627723,2278.3,2276.8,2.51013465]
[1770111046892,0.00331551,2278.3,2276.8,2.51471014]
[1770111047092,0.00331551,2278.3,2277.0,2.50452027]
[1770111047492,0.00331551,2278.3,2277.2,2.50452027]
[1770111047792,0.00331551,2278.3,2277.3,8.19879483]
[1770111047992,0.00331551,2278.3,2277.4,2.50452027]
[1770111048887,0.00331551,2278.3,2277.6,2.48993145]
[1770111049287,0.00331551,2278.3,2277.3,2.48993145]
[1770111049489,4.9912311,2278.2,2277.3,2.48993145]
[1770111049986,5.15267262,2278.2,2276.9,2.48993145]
[1770111050187,0.38113152,2277.9,2276.6,2.48137351]
[1770111050386,0.17728047,2277.7,2276.6,2.48137351]
[1770111050589,0.21969,2277.8,2276.8,5.49e-06]
[1770111050590,0.17728047,2277.5,2276.8,5.49e-06]
[1770111050786,4.98682003,2277.6,2276.8,5.49e-06]
[1770111050991,4.76711003,2277.4,2276.8,5.49e-06]
[1770111051189,0.17728047,2277.4,2276.3,2.48137351]
[1770111051488,0.39703047,2277.2,2275.8,2.48137351]
[1770111051690,0.17728047,2277.1,2275.8,2.48137351]
[1770111051898,0.77991959,2277.1,2275.8,2.48137351]
[1770111052292,0.60263912,2277.1,2275.8,2.48137351]
[1770111052591,4.75839605,2277.4,2275.8,2.48622266]
[1770111052796,0.14926899,2277.3,2275.8,2.48622266]
[1770111053096,4.81882473,2277.2,2275.8,2.48622266]
[1770111053794,0.14926899,2277.3,2276.0,2.49499766]
[1770111054187,5.11223396,2277.2,2276.0,2.49499766]
[1770111054693,0.14926899,2277.2,2276.0,2.49499766]
[1770111054895,5.01952355,2277.1,2276.0,2.49499766]
[1770111055197,0.14743612,2277.0,2276.0,2.49499766]
[1770111055399,0.14743612,2276.7,2275.8,0.00484915]
[1770111055603,0.14743612,2276.7,2275.4,2.4959141]
[1770111055898,4.55266804,2276.6,2275.4,2.4959141]
[1770111056297,0.59340697,2276.3,2273.7,0.3504417]
[1770111056494,0.21987,2276.0,2273.8,3.075]
[1770111056698,0.59340697,2275.9,2274.4,5.8418502]
[1770111056892,0.5973762,2275.8,2273.8,12.2588502]
[1770111057198,5.01659068,2275.7,2273.9,3.075]
[1770111057393,5.01659068,2275.7,2273.9,8.67711103]
[1770111057792,0.5973762,2275.8,2273.9,8.67711103]
[1770111057994,5.10366546,2275.7,2273.9,8.67711103]
[1770111058200,5.32356546,2275.7,2273.9,8.67711103]
[1770111058393,5.32356546,2275.7,2274.0,2.4589209]
[1770111058798,5.32356546,2275.7,2274.2,2.4589209]
[1770111059199,5.32356546,2275.7,2274.4,2.4589209]
[1770111060299,0.56800817,2276.1,2274.4,2.4589209]
[1770111060500,3.07820807,2276.3,2274.6,2.4589209]
[1770111060696,4.86878126,2276.0,2274.6,2.4589209]
[1770111060900,4.66856671,2276.2,2274.8,2.4589209]
[1770111061098,3.07820807,2276.3,2274.9,2.4589209]
[1770111061303,0.00320807,2276.3,2275.0,2.4589209]
[1770111061706,0.56251973,2277.3,2275.2,2.4589209]
[1770111062207,4.85572873,2277.0,2275.4,2.4589209]
[1770111062405,5.41245653,2277.2,2275.4,2.4589209]
[1770111062604,0.21976,2277.1,2275.6,2.4589209]
[1770111062804,0.0143185,2276.1,2274.6,2.56963216]
[1770111063198,4.85947088,2276.0,2274.6,2.56963216]
[1770111063400,0.21989,2275.8,2274.6,2.56963216]
[1770111063602,0.21991,2275.6,2274.6,2.56963216]
[1770111063803,2.42600794,2275.4,2273.5,3.076]
[1770111064002,2.64592794,2275.4,2273.5,3.076]
[1770111064202,2.42600794,2275.2,2273.5,3.076]
[1770111064609,4.67234204,2275.1,2273.6,5.60825909]
[1770111065010,2.64592794,2275.4,2273.6,5.61190409]
[1770111065411,5.03350701,2275.3,2273.6,5.61190409]
[1770111065710,0.00347778,2275.6,2273.6,5.61190409]
[1770111065711,0.00347778,2275.6,2273.7,6.415]
[1770111066008,0.00347778,2275.6,2273.8,8.16448666]
[1770111066208,4.96033065,2275.5,2274.0,2.4589209]
[1770111066405,2.42600794,2275.4,2274.0,2.4589209]
[1770111066907,4.60007082,2275.3,2274.0,2.4589209]
[1770111067107,4.60007082,2275.3,2274.2,2.4589209]
[1770111067405,0.00347778,2275.6,2274.2,2.4589209]
[1770111067711,4.85436479,2275.5,2274.2,2.4589209]
[1770111067902,7.28037273,2275.5,2274.2,2.4589209]
[1770111068205,2.42600794,2275.4,2274.2,2.4589209]
[1770111068608,4.85436479,2275.3,2274.2,2.4589209]
[1770111069309,0.00347778,2275.6,2274.4,2.4589209]
[1770111069711,0.00347778,2275.6,2274.6,2.4589209]
[1770111069712,4.94850171,2275.5,2274.6,2.4589209]
[1770111069912,0.00347778,2275.6,2274.6,2.4589209]
[1770111070215,0.00347778,2275.6,2274.8,2.4589209]
[1770111070415,3.076,2276.5,2274.8,2.4589209]
[1770111070615,3.076,2276.5,2275.0,2.4589209]
[1770111071112,3.076,2276.5,2275.2,2.4589209]
[1770111071411,3.08103048,2276.5,2275.4,2.4589209]
[1770111072309,0.00503048,2276.5,2275.6,2.4589209]
[1770111072508,2.42600794,2277.2,2275.6,2.4589209]
[1770111072815,4.8741089,2277.1,2275.8,2.4589209]
[1770111073415,4.87971872,2277.1,2275.8,2.4589209]
[1770111074612,0.00560982,2277.1,2276.0,2.4589209]
[1770111074817,2.43161776,2277.1,2276.0,2.4589209]
[1770111075111,4.8376411,2277.0,2276.0,2.4589209]
[1770111075311,7.26364904,2277.0,2276.0,2.4589209]
[1770111078316,4.8376411,2277.0,2276.0,2.4589209]
[1770111078912,0.00560982,2277.1,2276.0,2.4589209]
[1770111079111,0.00560982,2277.1,2276.2,2.4589209]
[1770111080220,2.37579423,2278.4,2276.4,2.4589209]
[1770111080719,7.10261815,2278.0,2276.6,2.41885031]
[1770111080919,2.37579423,2278.0,2276.6,2.41885031]
[1770111081114,2.37579423,2277.8,2276.6,2.41885031]
[1770111081520,4.73969866,2277.7,2276.6,2.41885031]
[1770111081818,4.74439823,2277.7,2276.6,2.41885031]
[1770111082219,0.00469957,2277.7,2276.6,2.41885031]
[1770111083715,2.385511,2277.7,2275.8,2.41885031]
[1770111083920,2.38081143,2277.5,2275.8,2.41885031]
[1770111084121,2.38081143,2277.2,2275.8,2.41885031]
[1770111084322,4.62806154,2277.4,2276.0,2.41885031]
[1770111084618,4.62806154,2277.5,2276.1,5.70272801]
[1770111084819,25.30403247,2279.0,2276.9,0.0031034]
[1770111085013,2.57152429,2280.7,2279.4,2.16137262]
[1770111085318,2.57152429,2280.6,2279.5,3.075]
[1770111085516,2.57152429,2280.5,2280.1,2.59127467]
[1770111085719,64.98957409,2280.6,2280.2,2.59127467]
[1770111085920,60.9475572,2280.4,2280.3,5.52927125]
[1770111086120,60.9530067,2280.6,2280.3,5.52927125]
[1770111086316,0.21925,2282.5,2280.4,7.94812156]
[1770111086519,0.21925,2282.5,2280.8,2.58066483]
[1770111086716,0.22196456,2281.8,2280.7,2.58066483]
[1770111086920,0.22196456,2281.7,2280.4,4.99951514]
[1770111087122,0.22196456,2281.6,2280.4,2.41885031]
[1770111087324,0.22339748,2281.6,2280.4,2.41885031]
[1770111087627,4.83419547,2281.5,2280.4,2.41885031]
[1770111087823,2.41005413,2280.6,2280.4,1.19685031]
[1770111088023,2.41005413,2280.6,2280.4,0.97488575]
[1770111088625,2.41005413,2280.6,2280.2,0.00487533]
[1770111089627,2.41005413,2281.5,2280.2,0.00487533]
[1770111089929,7.07074117,2281.5,2280.2,0.00487533]
[1770111090222,2.41005413,2281.4,2280.2,0.00487533]
[1770111090620,2.41005413,2281.2,2280.2,0.00487533]
[1770111090930,4.95825185,2281.1,2280.2,0.00487533]
[1770111091430,2.41005413,2281.2,2280.2,0.00487533]
[1770111092024,2.41005413,2281.0,2279.4,2.5645532]
[1770111092221,2.41005413,2281.0,2279.1,2.5645532]
[1770111092421,2.41005413,2280.8,2279.1,2.5645532]
[1770111092629,2.41005413,2280.8,2279.2,1.17505705]
[1770111092823,2.62947413,2280.6,2278.9,2.5645532]
[1770111093025,2.41005413,2280.1,2278.4,3.72845935]
[1770111093227,2.41005413,2280.1,2278.4,1.16390615]
[1770111093527,2.41005413,2279.9,2278.5,5.71965322]
[1770111093921,0.21947,2280.1,2278.1,2.5645532]
[1770111093922,2.62956413,2279.7,2278.1,2.5645532]
[1770111094122,2.63373418,2279.7,2278.1,0.00353386]
[1770111094324,2.41005413,2279.5,2278.1,2.56808706]
[1770111094520,2.41005413,2279.5,2278.1,3.73199321]
[1770111094729,2.41005413,2279.3,2278.1,3.73199321]
[1770111095123,7.2011766,2279.2,2278.2,2.5645532]
[1770111095529,2.41005413,2279.2,2278.2,2.5645532]
[1770111096229,2.41005413,2279.2,2278.3,2.5645532]
[1770111096922,2.41005413,2279.5,2278.3,2.5645532]
[1770111097327,2.41005413,2279.3,2278.5,2.5645532]
[1770111097630,0.22368005,2279.7,2278.5,2.5645532]
[1770111097631,2.41005413,2279.1,2278.5,2.5645532]
[1770111097829,2.41005413,2279.1,2278.0,11.72215379]
[1770111097830,2.41005413,2279.1,2277.7,5.16132966]
[1770111098021,2.41005413,2279.1,2277.6,2.41885031]
[1770111098022,1.36795419,2278.9,2277.6,2.41885031]
[1770111098630,1.36795419,2278.7,2277.6,2.41885031]
[1770111098828,1.36795419,2278.7,2277.6,2.42358004]
[1770111099329,4.832055,2278.6,2277.6,2.42358004]
[1770111099530,0.21954,2279.4,2277.8,5.16132966]
[1770111099730,0.21948,2280.0,2277.9,11.960184]
[1770111099930,4.66369954,2279.2,2278.2,7.56881558]
[1770111100230,1.366151,2279.2,2277.9,2.41885031]
[1770111100424,0.00417005,2279.7,2277.7,2.41885031]
[1770111100425,0.21958,2279.0,2277.7,2.41885031]
[1770111100620,0.21958,2279.0,2277.9,2.41885031]
[1770111100825,4.66369954,2278.9,2277.9,2.41885031]
[1770111101026,1.366151,2279.3,2278.1,2.41885031]
[1770111101228,5.06316124,2279.2,2278.1,7.76184291]
[1770111101528,5.06316124,2279.5,2278.3,2.41885031]
[1770111101729,6.39721413,2279.5,2278.3,2.41885031]
[1770111101929,1.33405289,2279.4,2278.2,5.3429926]
[1770111102129,6.20587289,2279.4,2278.2,2.41885031]
[1770111102330,4.87182,2279.4,2278.3,2.41885031]
[1770111103230,4.87182,2279.4,2278.3,7.76184291]
[1770111103430,4.87182,2279.4,2278.4,5.3429926]
[1770111103831,1.36054654,2279.3,2278.3,2.41885031]
[1770111104231,4.6396134,2279.2,2278.3,2.41885031]
[1770111104433,4.6396134,2279.2,2278.3,7.76184291]
[1770111105324,4.6396134,2279.2,2278.4,5.3429926]
[1770111106232,4.6396134,2279.2,2278.5,5.3429926]
[1770111106431,4.6396134,2279.2,2278.4,5.3429926]
[1770111106732,4.6396134,2279.2,2278.5,5.3429926]
[1770111107034,4.6396134,2279.2,2278.4,5.3429926]
[1770111107332,4.6396134,2279.2,2278.5,5.3429926]
[1770111107634,4.6396134,2279.2,2278.6,4.8854826]
[1770111107834,4.6396134,2279.2,2278.3,7.56881558]
[1770111108333,4.6396134,2279.2,2278.4,5.14996527]
[1770111108533,4.6396134,2279.2,2278.5,7.56881558]
[1770111108731,4.6396134,2279.2,2278.4,5.14996527]
[1770111108935,5.08226346,2279.3,2278.4,5.14996527]
[1770111109236,1.56782728,2279.4,2278.5,5.14996527]
[1770111109540,5.08226346,2279.3,2278.5,5.14996527]
[1770111110134,5.08226346,2279.3,2278.5,7.56881558]
[1770111110330,5.08226346,2279.3,2278.7,7.6039705]
[1770111110532,0.00417005,2279.7,2279.0,2.45400523]
[1770111110738,0.00417005,2279.7,2279.1,7.6039705]
[1770111111035,0.00417005,2279.7,2279.0,5.14996527]
[1770111111230,0.00417005,2279.7,2279.1,7.6039705]
[1770111112133,1.50934897,2279.7,2279.1,3.67106433]
[1770111112330,1.50934897,2279.7,2278.5,2.49828482]
[1770111112331,4.93391614,2279.6,2278.5,2.49828482]
[1770111112637,4.93391614,2279.6,2278.6,2.56931793]
[1770111114436,4.93391614,2279.6,2278.7,2.56931015]
[1770111115329,4.93391614,2279.6,2278.8,2.56931793]
[1770111115533,4.93391614,2279.6,2278.8,9.04782787]
[1770111117336,4.93391614,2279.6,2278.9,6.47850994]
[1770111118138,4.93391614,2279.6,2278.9,9.04782787]
[1770111119438,4.93391614,2279.6,2279.0,5.1249173]
[1770111119638,4.93391614,2279.6,2279.1,7.69423523]
[1770111119940,4.93391614,2279.6,2278.9,6.47850994]
[1770111119941,4.93391614,2279.6,2279.2,7.69423523]
[1770111120139,4.93391614,2279.6,2279.3,4.1930273]
[1770111120342,4.93391614,2279.6,2279.2,2.57411977]
[1770111120636,0.21954,2279.5,2278.8,5.93074994]
[1770111120839,5.14390907,2279.5,2278.3,2.56931793]
[1770111121134,0.21954,2279.5,2278.3,2.56931793]
[1770111121340,4.79867152,2279.4,2278.3,2.56931793]
[1770111121734,0.21958,2279.0,2278.3,0.00366518]
[1770111122135,4.86575343,2278.9,2278.3,0.00366518]
[1770111122733,0.21952,2279.6,2278.3,0.00366518]
[1770111122943,0.68053655,2279.6,2278.3,0.00366518]
[1770111123144,4.97223604,2279.0,2278.3,0.00366518]
[1770111123541,0.00417005,2279.7,2278.3,7.79775579]
[1770111123739,0.00417005,2279.7,2278.5,10.29237543]
[1770111123944,0.00417005,2279.7,2278.6,10.29237543]
[1770111124136,0.00417005,2279.7,2278.7,2.49828482]
[1770111124340,5.01972749,2279.6,2278.7,2.49828482]
[1770111124539,0.00417005,2279.7,2278.7,2.49828482]
[1770111124741,0.00417005,2279.7,2278.9,2.49828482]
[1770111125446,0.48021001,2280.4,2279.0,2.49828482]
[1770111125842,4.89062522,2280.2,2279.0,2.49828482]
[1770111126144,0.48021001,2280.4,2279.0,2.49828482]
[1770111126345,0.00331373,2280.4,2279.0,2.49828482]
[1770111126546,4.62138642,2280.3,2279.1,2.49828482]
[1770111126745,4.62138642,2280.3,2279.2,2.49828482]
[1770111126945,0.00331373,2280.4,2279.2,2.49828482]
[1770111127546,4.95531959,2280.3,2279.2,2.49828482]
[1770111127746,4.95531959,2280.3,2279.6,3.9312871]
[1770111128047,4.95531959,2280.3,2279.4,3.9312871]
[1770111128544,4.95531959,2280.3,2279.5,6.42957192]
[1770111129247,4.95531959,2280.3,2279.6,2.49828482]
[1770111129648,0.00331373,2280.4,2279.7,6.42957192]
[1770111129848,0.00331373,2280.4,2279.8,6.42957192]
[1770111130146,0.00331373,2280.4,2280.0,2.49828482]
[1770111130347,0.00331373,2280.4,2280.0,2.50285101]
[1770111130541,0.00331373,2280.4,2280.0,6.43413811]
[1770111130741,0.00331373,2280.4,2280.1,2.49828482]
[1770111130943,0.21937,2281.1,2280.1,2.49828482]
[1770111131345,4.7880804,2280.9,2280.1,2.49828482]
[1770111131545,4.7880804,2281.0,2280.1,2.49828482]
[1770111131745,0.53401673,2281.0,2280.0,3.93585329]
[1770111132048,0.53401673,2280.9,2280.0,6.19e-06]
[1770111132241,0.21941,2280.8,2280.0,6.19e-06]
[1770111132442,5.23444913,2280.8,2280.0,2.49829101]
[1770111135153,5.01503913,2280.8,2280.1,2.49828482]
[1770111135349,0.21935,2281.4,2280.3,2.49828482]
[1770111135542,3.072,2281.6,2280.5,2.49828482]
[1770111135742,4.75439022,2281.3,2280.5,2.49828482]
[1770111136044,4.75439022,2281.5,2280.5,2.49828482]
[1770111136248,3.072,2281.6,2280.7,2.49828482]
[1770111136449,4.99195614,2281.5,2280.7,2.49828482]
[1770111136944,3.07601341,2281.6,2280.8,2.49828482]
[1770111137152,4.92921852,2281.5,2280.8,2.49828482]
[1770111141962,3.07601341,2281.6,2280.8,2.49828482]
[1770111142364,4.61033203,2281.5,2280.8,2.49828482]
[1770111143465,3.07601341,2281.6,2280.8,2.49828482]
[1770111143765,4.78522627,2281.5,2280.8,2.49828482]
[1770111144363,3.07601341,2281.6,2280.8,2.49828482]
[1770111145167,4.7963667,2281.5,2280.8,2.49828482]
[1770111145366,3.07601341,2281.6,2280.8,2.49828482]
[1770111146564,4.94817222,2281.5,2280.8,2.49828482]
[1770111146765,4.94817222,2281.5,2280.6,3.9312871]
[1770111147069,0.46832988,2281.3,2280.2,2.48679634]
[1770111147364,5.0226643,2281.2,2280.2,2.48679634]
[1770111147767,5.0226643,2281.3,2280.2,2.48679634]
[1770111147970,0.21935,2281.4,2280.2,2.48679634]
[1770111148169,3.07601341,2281.6,2280.4,2.48679634]
[1770111148470,3.07601341,2281.6,2280.5,2.48679634]
[1770111148978,4.94979231,2281.5,2280.7,2.48679634]
[1770111149170,4.94979231,2281.5,2280.8,2.48679634]
[1770111149372,0.00401341,2281.6,2280.8,2.48679634]
[1770111149774,4.94979231,2281.5,2280.8,2.48679634]
[1770111150877,0.00401341,2281.6,2280.8,2.48679634]
[1770111151476,0.46162363,2282.2,2280.8,2.48679634]
[1770111151678,0.46162363,2282.2,2280.9,2.48679634]
[1770111151975,3.28924,2282.5,2280.9,2.48679634]
[1770111151976,3.65962829,2282.1,2280.9,2.48679634]
[1770111152175,0.21923,2282.6,2281.4,2.48679634]
[1770111152382,0.44127166,2282.2,2281.0,2.48679634]
[1770111152678,3.28925,2282.4,2281.0,2.48679634]
[1770111152879,4.69692295,2282.1,2281.0,2.48679634]
[1770111153079,4.94241038,2282.2,2281.1,2.48679634]
[1770111153281,4.94241038,2282.3,2281.2,2.48679634]
[1770111153480,3.07,2282.4,2281.3,2.48679634]
[1770111153680,4.94241038,2282.3,2281.4,2.48679634]
[1770111154076,0.92712408,2282.2,2280.5,5.23600709]
[1770111154482,0.92712408,2282.0,2280.5,5.23600709]
[1770111154678,0.92712408,2282.0,2280.4,4.42305703]
[1770111154878,0.92712408,2281.8,2280.0,5.23601328]
[1770111155079,0.92712408,2281.8,2280.0,6.19e-06]
[1770111155279,0.21936,2281.3,2280.1,9.6626924]
[1770111155480,5.57784105,2281.7,2280.2,9.6626924]
[1770111155679,1.20842927,2281.2,2280.2,5.23600709]
[1770111155879,1.20842927,2281.2,2280.2,9.6626924]
[1770111156076,4.62456106,2281.6,2280.4,2.48679634]
[1770111156284,1.17256999,2282.0,2280.6,2.48679634]
[1770111156583,4.86891632,2281.6,2280.7,2.48679634]
[1770111156773,4.86891632,2281.9,2280.8,2.48679634]
[1770111156978,0.97824668,2282.3,2280.9,2.48679634]
[1770111157179,4.6057865,2281.9,2281.0,2.48679634]
[1770111157379,4.6057865,2281.9,2281.1,2.48679634]
[1770111157584,0.21924,2282.5,2281.2,2.48679634]
[1770111157779,0.21924,2282.5,2281.4,2.61265188]
[1770111157986,4.6057865,2282.2,2281.6,2.48679634]
[1770111158284,0.00497816,2282.6,2281.7,2.48679634]
[1770111158483,0.00497816,2282.6,2281.8,5.09944822]
[1770111158683,0.00497816,2282.6,2281.9,2.48679634]
[1770111159386,0.00497816,2282.6,2281.8,2.61265188]
[1770111159585,4.96050715,2282.3,2281.8,2.48679634]
[1770111159777,0.00497816,2282.6,2281.9,2.48679634]
[1770111160177,0.00497816,2282.6,2282.1,5.09944822]
[1770111160384,3.07,2283.3,2282.3,2.48679634]
[1770111160685,5.00180755,2283.2,2282.4,2.48679634]
[1770111160882,5.98895468,2283.2,2282.2,6.99769194]
[1770111161087,0.97432746,2282.9,2281.6,2.49195473]
[1770111161287,0.00516204,2282.9,2281.7,2.48679634]
[1770111161484,4.56291277,2282.8,2281.7,2.48679634]
[1770111161685,4.56291277,2282.8,2281.8,2.48679634]
[1770111161986,4.56291277,2282.8,2281.9,2.48679634]
[1770111162786,4.56291277,2282.8,2282.0,2.48679634]
[1770111162987,4.56291277,2282.8,2282.1,2.48679634]
[1770111163181,4.04432746,2283.3,2282.4,2.48679634]
[1770111163182,3.07,2283.3,2282.4,2.48679634]
[1770111163386,2.52785286,2283.5,2282.4,4.32633037]
[1770111163584,2.52785286,2283.1,2282.2,4.32633037]
[1770111164087,0.11803454,2283.0,2282.2,6.81312671]
[1770111164287,0.00494559,2283.0,2282.0,2.48679634]
[1770111164487,0.00494559,2283.0,2282.0,6.81007255]
[1770111164688,4.77168113,2283.0,2282.2,2.48679634]
[1770111164885,0.00494559,2283.0,2282.2,12.04607964]
[1770111165186,7.13424201,2282.9,2281.9,7.72280343]
[1770111165587,7.13424201,2282.9,2282.0,2.48679634]
[1770111165782,7.13424201,2282.9,2282.0,6.79511431]
[1770111165988,7.13424201,2282.9,2282.1,4.30831797]
[1770111166188,7.13424201,2282.9,2282.0,2.48679634]
[1770111166384,0.00494559,2283.0,2282.0,2.48679634]
[1770111166581,2.52785286,2283.6,2282.2,2.48679634]
[1770111166784,2.52785286,2283.9,2282.6,2.48679634]
[1770111166983,2.52785286,2283.9,2282.7,2.48679634]
[1770111167180,5.59685286,2284.2,2282.8,2.48679634]
[1770111167389,2.52785286,2284.1,2282.9,2.48679634]
[1770111167589,7.46255824,2284.1,2283.0,2.48679634]
[1770111167789,4.93470538,2284.1,2283.0,2.48679634]
[1770111167984,2.52785286,2284.0,2283.0,2.48679634]
[1770111168188,2.52785286,2284.8,2283.2,0.76126777]
[1770111168588,4.75159432,2284.1,2283.2,5.06851867]
[1770111168793,7.27944718,2284.1,2283.1,4.3072509]
[1770111168988,2.52785286,2284.1,2283.0,4.3072509]
[1770111169188,2.52785286,2284.1,2282.9,0.76126777]
[1770111169387,4.65032602,2284.0,2283.1,0.73429783]
[1770111169589,0.004389,2284.1,2283.1,0.73429783]
[1770111169791,0.004389,2284.1,2283.3,0.73429783]
[1770111170185,0.21895,2285.5,2283.3,0.73429783]
[1770111170385,2.57274525,2285.2,2283.5,0.72687847]
[1770111170590,2.35376525,2284.6,2283.5,0.72687847]
[1770111170788,2.35376525,2284.6,2283.5,5.00278856]
[1770111170987,2.35376525,2285.2,2283.5,4.26545724]
[1770111171192,2.56638353,2285.1,2283.6,11.01665226]
[1770111171490,2.56638353,2284.9,2283.7,4.26545724]
[1770111171690,2.56638353,2284.9,2283.6,3.363]
[1770111171891,4.67220633,2284.8,2283.7,5.79366259]
[1770111172082,7.23833754,2284.8,2283.7,5.79366259]
[1770111172286,5.63513121,2284.5,2283.0,5.23600709]
[1770111172491,2.56613121,2284.5,2283.0,5.23600709]
[1770111172694,4.71768875,2284.4,2283.2,5.79366259]
[1770111172988,2.56613121,2284.8,2283.1,9.4924686]
[1770111173194,2.56613121,2284.8,2283.1,10.89165182]
[1770111173395,2.56613121,2284.6,2283.2,5.23600709]
[1770111173593,2.56613121,2284.6,2283.1,4.25646151]
[1770111173888,2.56613121,2284.4,2283.1,5.79862086]
[1770111174090,2.56613121,2284.4,2283.1,4.25646151]
[1770111174296,2.56613121,2284.1,2282.9,0.00538647]
[1770111174491,4.61825038,2284.3,2282.9,0.00538647]
[1770111174492,2.56613121,2283.7,2282.9,0.00538647]
[1770111174893,7.68725038,2283.6,2282.9,0.00538647]
[1770111175091,7.69219947,2283.6,2282.9,0.00538647]
[1770111175492,7.69219947,2283.6,2282.1,10.79016435]
[1770111175493,2.54804126,2283.3,2282.1,0.03617989]
[1770111175794,4.62319947,2283.6,2281.4,24.0762301]
[1770111175795,2.54804126,2283.5,2282.3,0.03617989]
[1770111176295,7.30403295,2283.5,2282.3,0.03617989]
[1770111176496,2.54804126,2283.4,2282.3,0.03617989]
[1770111176802,2.54804126,2283.4,2282.3,0.04099229]
[1770111176997,0.00494909,2283.6,2282.3,0.04099229]
[1770111177298,2.53977714,2283.6,2282.5,0.0626063]
[1770111177492,2.53482805,2283.4,2282.4,4.2416342]
[1770111177795,2.53482805,2283.2,2282.3,0.0048124]
[1770111178397,0.00494909,2283.6,2282.4,0.0626063]
[1770111178398,2.53977714,2283.6,2282.4,0.0626063]
[1770111178596,2.53977714,2283.6,2282.5,0.0626063]
[1770111179000,2.5579793,2283.4,2282.4,4.2416342]
[1770111179198,2.5579793,2283.4,2282.3,3.90295636]
[1770111179796,7.62963122,2283.3,2282.3,3.90295636]
[1770111179998,10.18761052,2283.3,2282.3,3.90295636]
[1770111180394,10.18761052,2283.3,2282.3,4.26275041]
[1770111180689,2.5579793,2283.2,2282.3,0.0048124]
[1770111180998,3.069,2283.0,2281.7,0.0651123]
[1770111181197,7.40816968,2283.1,2281.9,0.0651123]
[1770111181499,2.53357505,2283.1,2281.9,0.0651123]
[1770111181699,7.54621973,2283.0,2281.9,0.0651123]
[1770111181901,2.53357505,2282.9,2281.9,0.00340091]
[1770111182104,2.53357505,2282.9,2281.6,3.88184015]
[1770111182396,2.53357505,2282.7,2281.6,0.0651123]
[1770111182698,7.42013543,2283.1,2282.0,0.0651123]
[1770111182898,4.88656038,2283.1,2282.1,0.10722495]
[1770111183199,2.51251873,2283.1,2282.1,9.49124506]
[1770111183400,5.58151873,2283.0,2282.1,0.00566258]
[1770111183597,2.51251873,2282.9,2282.1,0.00566258]
[1770111183798,2.51251873,2282.5,2281.7,3.88184015]
[1770111184300,4.84098865,2282.4,2281.6,3.88184015]
[1770111184600,2.51251873,2282.5,2281.6,3.88184015]
[1770111184802,2.51251873,2282.2,2281.6,0.00309375]
[1770111185003,2.53827687,2282.1,2281.6,0.00309375]
[1770111185202,2.53827687,2281.9,2281.2,3.88184015]
[1770111185496,2.53827687,2281.9,2281.3,3.88184015]
[1770111185999,3.069,2281.7,2281.3,3.88184015]
[1770111186201,3.07364628,2281.7,2281.3,3.88577546]
[1770111186500,3.069,2281.6,2281.3,0.00393531]
[1770111186797,2.53827687,2282.2,2281.3,3.88577546]
[1770111187201,7.30107819,2283.1,2281.8,3.88184015]
[1770111187503,2.52928934,2283.5,2282.8,3.88184015]
[1770111187796,2.52928934,2283.6,2282.8,3.88184015]
[1770111187997,3.067,2283.7,2282.8,3.88184015]
[1770111188191,3.067,2283.7,2282.9,3.88184015]
[1770111188389,2.52928934,2283.6,2282.9,3.88184015]
[1770111188601,2.52928934,2283.6,2282.8,8.13947922]
[1770111188602,2.52928934,2283.5,2282.8,8.13947922]
[1770111188902,2.51809264,2283.3,2282.8,0.00529027]
[1770111189100,2.51809264,2283.3,2282.5,3.88184015]
[1770111189401,2.51809264,2283.1,2282.1,3.97791728]
[1770111189600,2.51809264,2283.1,2282.4,3.88184015]
[1770111189800,2.51809264,2283.1,2282.2,5.23600709]
[1770111189801,4.86410529,2283.0,2282.3,3.88184015]
[1770111190099,7.32064842,2283.1,2282.3,3.88651347]
[1770111190401,2.51809264,2283.1,2282.3,3.88651347]
[1770111190800,7.32064842,2283.0,2282.3,0.00467332]
[1770111191000,7.32064842,2283.0,2282.3,3.88651347]
[1770111191194,2.51809264,2283.0,2282.1,3.90705994]
[1770111191398,2.3145708,2282.8,2281.4,5.23600709]
[1770111191593,2.3145708,2282.8,2281.3,9.50064752]
[1770111191800,2.3145708,2282.8,2281.3,5.33295775]
[1770111192001,2.3145708,2282.6,2281.4,2.34901922]
[1770111192201,2.3145708,2282.6,2281.5,2.34901922]
[1770111192398,7.34939563,2282.9,2281.7,5.23600709]
[1770111192602,2.3145708,2283.2,2282.0,2.34901922]
[1770111192998,5.03482483,2283.0,2282.0,2.34901922]
[1770111193199,2.3145708,2283.2,2282.1,2.34901922]
[1770111193502,2.3145708,2283.4,2282.2,2.34901922]
[1770111193902,2.3145708,2283.3,2282.2,6.51670899]
[1770111194095,2.3145708,2283.3,2282.4,2.34901922]
[1770111194294,5.0623999,2283.2,2282.2,9.40369686]
[1770111194498,2.3145708,2283.3,2282.3,2.34901922]
[1770111194905,3.07051038,2283.5,2282.5,2.34901922]
[1770111195103,3.07051038,2283.5,2282.6,2.34901922]
[1770111196499,3.07051038,2283.5,2282.6,6.51670899]
[1770111196695,0.00351038,2283.5,2282.8,2.34901922]
[1770111196899,2.3145708,2284.3,2282.9,2.34901922]
[1770111197102,3.067,2284.4,2283.2,2.34901922]
[1770111197303,3.067,2284.4,2283.4,2.34901922]
[1770111197504,4.90340244,2284.3,2283.4,2.34901922]
[1770111197706,3.067,2284.4,2283.5,2.34901922]
[1770111197904,2.3145708,2284.2,2283.5,0.00471983]
[1770111198206,7.18353707,2284.1,2283.5,0.00471983]
[1770111198508,2.3145708,2284.1,2283.1,4.16559668]
[1770111198703,2.3145708,2284.1,2282.9,10.98002631]
[1770111198704,2.3145708,2284.1,2283.0,6.5146159]
[1770111198903,2.3145708,2284.1,2283.1,4.16559668]
[1770111199405,2.3145708,2284.1,2283.0,2.34901922]
[1770111199604,2.3145708,2284.1,2283.0,2.35280705]
[1770111200405,2.33194206,2283.9,2283.0,0.00378783]
[1770111200610,2.33194206,2283.9,2282.4,2.37450936]
[1770111200809,2.33194206,2283.7,2282.4,2.37450936]
[1770111201204,2.33194206,2283.5,2282.4,2.37450936]
[1770111201607,2.33194206,2283.3,2282.4,2.37881687]
[1770111201810,2.33194206,2283.3,2282.4,4.17249743]
[1770111202005,0.37685602,2283.2,2282.4,0.00430751]
[1770111202310,4.88451406,2283.3,2282.4,2.37881687]
[1770111202511,4.88451406,2283.3,2282.6,5.23600709]
[1770111202714,2.33194206,2283.3,2282.6,4.16818992]
[1770111203012,4.88451406,2283.2,2282.4,5.2403146]
[1770111203709,7.21645612,2283.2,2282.4,5.2403146]
[1770111203909,2.33194206,2283.1,2281.9,5.23600709]
[1770111204307,2.33194206,2282.9,2281.9,5.23600709]
[1770111204711,5.02595161,2282.8,2281.9,5.23600709]
[1770111204912,5.02965714,2282.8,2282.0,2.37450936]
[1770111205107,0.00370553,2282.8,2282.1,2.37450936]